fUST/lending_fUST_20250827
["ID","MTS","AMOUNT","RATE_DAILY","PERIOD"]
[381566028,1756285840218,-151.0,0.00023152,2]
[381566029,1756285840227,-500.0,0.00023152,2]
[381566030,1756285840236,-151.0,0.00023152,2]
[381566032,1756285840246,-300.0,0.00023152,2]
[381566034,1756285840256,-500.0,0.00023152,2]
[381566036,1756285840266,-300.0,0.00023152,2]
[381566038,1756285840276,-500.0,0.00023152,2]
[381566040,1756285840285,-300.0,0.00023152,2]
[381566042,1756285840295,-1000.0,0.00023152,2]
[381566044,1756285840310,-500.0,0.00023152,2]
[381566046,1756285840328,-300.0,0.00023152,2]
[381566048,1756285840346,-1000.0,0.00023152,2]
[381566050,1756285840355,-500.0,0.00023152,2]
[381566052,1756285840365,-1000.0,0.00023152,2]
[381566054,1756285840377,-500.0,0.00023152,2]
[381566056,1756285840387,-1000.0,0.00023152,2]
[381566058,1756285840396,-500.0,0.00023152,2]
[381566060,1756285840405,-1000.0,0.00023152,2]
[381566062,1756285840415,-1000.0,0.00023152,2]
[381566063,1756285840424,-1000.0,0.00023152,2]
[381566064,1756285840434,-1000.0,0.00023152,2]
[381566065,1756285840443,-1000.0,0.00023152,2]
[381566066,1756285840452,-1000.0,0.00023152,2]
[381566067,1756285840462,-1000.0,0.00023152,2]
[381566068,1756285840471,-151.0,0.00023152,2]
[381566069,1756285840481,-1000.0,0.00023152,2]
[381566070,1756285840491,-151.0,0.00023152,2]
[381566071,1756285840500,-1000.0,0.00023152,2]
[381566072,1756285840510,-151.0,0.00023152,2]
[381566073,1756285840519,-1000.0,0.00023152,2]
[381566074,1756285840529,-151.0,0.00023152,2]
[381566076,1756285840538,-1000.0,0.00023152,2]
[381566078,1756285840547,-151.0,0.00023152,2]
[381566080,1756285840557,-1000.0,0.00023152,2]
[381566082,1756285840566,-151.0,0.00023152,2]
[381566083,1756285840576,-480.0,0.00023153,2]
[381566084,1756285840585,-480.0,0.00023153,2]
[381566085,1756285840595,-480.0,0.00023153,2]
[381566086,1756285840605,-541.47,0.00023153,2]
[381566088,1756285840616,-498.9,0.00023153,2]
[381566090,1756285840626,-563.3,0.00023153,2]
[381566092,1756285840635,-480.0,0.00023153,2]
[381566094,1756285840645,-480.0,0.00023153,2]
[381566096,1756285840654,-480.0,0.00023153,2]
[381566098,1756285840664,-480.0,0.00023153,2]
[381566100,1756285840674,-480.0,0.00023153,2]
[381566102,1756285840684,-720.79,0.00023153,2]
[381566104,1756285840693,-244.60459148,0.00023153,2]
[381566106,1756285840703,-513.4284111,0.00023153,2]
[381566108,1756285840712,-480.0,0.00023153,2]
[381566110,1756285840721,-480.0,0.00023153,2]
[381566113,1756285840730,-480.0,0.00023153,2]
[381566115,1756285840740,-480.0,0.00023153,2]
[381566117,1756285840749,-501.91,0.00023153,2]
[381566119,1756285840758,-480.0,0.00023153,2]
[381566121,1756285840767,-730.1,0.00023153,2]
[381566123,1756285840777,-1194.1,0.00023153,3]
[381566125,1756285840786,-702.89,0.00023153,2]
[381566127,1756285840795,-480.0,0.00023153,2]
[381566129,1756285840804,-565.76,0.00023153,2]
[381566132,1756285840813,-480.0,0.00023153,2]
[381566134,1756285840823,-674.26,0.00023153,2]
[381566136,1756285840832,-480.0,0.00023153,2]
[381566138,1756285840841,-679.8,0.00023153,2]
[381566140,1756285840850,-480.0,0.00023153,2]
[381566142,1756285840860,-480.0,0.00023153,2]
[381566144,1756285840871,-480.0,0.00023153,2]
[381566146,1756285840880,-480.0,0.00023153,2]
[381566148,1756285840889,-712.05,0.00023153,2]
[381566150,1756285840898,-480.0,0.00023153,2]
[381566152,1756285840907,-480.0,0.00023153,2]
[381566154,1756285840917,-480.0,0.00023153,2]
[381566156,1756285840926,-480.0,0.00023153,2]
[381566158,1756285840936,-979.4,0.00023153,2]
[381566160,1756285840945,-712.53,0.00023153,2]
[381566162,1756285840954,-1469.65,0.00023153,2]
[381566164,1756285840963,-480.0,0.00023153,2]
[381566166,1756285840973,-639.0,0.00023153,2]
[381566168,1756285840982,-480.0,0.00023153,2]
[381566170,1756285840991,-480.0,0.00023153,2]
[381566172,1756285841000,-480.0,0.00023153,2]
[381566174,1756285841010,-817.51,0.00023153,2]
[381566176,1756285841020,-480.0,0.00023153,2]
[381566178,1756285841029,-480.0,0.00023153,2]
[381566180,1756285841039,-672.32,0.00023153,2]
[381566182,1756285841048,-482.48548774,0.00023153,2]
[381566184,1756285841057,-155.85734643,0.00023153,2]
[381566186,1756285841067,-506.58,0.00023153,2]
[381566188,1756285841078,-4677.51,0.00023153,2]
[381566190,1756285841089,-480.0,0.00023153,2]
[381566192,1756285841099,-480.0,0.00023153,2]
[381566194,1756285841108,-2100.06,0.00023153,2]
[381566196,1756285841119,-500.0,0.00023153,2]
[381566198,1756285841129,-480.0,0.00023153,2]
[381566200,1756285841139,-657.34,0.00023153,2]
[381566202,1756285841148,-480.0,0.00023153,2]
[381566204,1756285841159,-1882.32,0.00023153,2]
[381566206,1756285841169,-587.34,0.00023153,2]
[381566208,1756285841178,-2412.59,0.00023153,2]
[381566212,1756285841379,-480.0,0.00023153,2]
[381566213,1756285841394,-480.0,0.00023153,2]
[381566215,1756285841404,-379.4322743,0.00023153,2]
[381566217,1756285841414,-495.16,0.00023153,2]
[381566219,1756285841424,-480.55669122,0.00023153,2]
[381566221,1756285841433,-480.0,0.00023153,2]
[381566223,1756285841443,-480.0,0.00023153,2]
[381566225,1756285841453,-480.0,0.00023153,2]
[381566227,1756285841463,-480.0,0.00023153,2]
[381566229,1756285841473,-820.71,0.00023153,2]
[381566231,1756285841483,-480.0,0.00023153,2]
[381566233,1756285841494,-748.5,0.00023153,2]
[381566235,1756285841504,-480.96364083,0.00023153,2]
[381566237,1756285841514,-480.0,0.00023153,2]
[381566239,1756285841524,-480.0,0.00023153,2]
[381566241,1756285841534,-549.5,0.00023153,2]
[381566243,1756285841542,-536.98,0.00023153,2]
[381566245,1756285841551,-1687.19,0.00023153,2]
[381566247,1756285841560,-480.0,0.00023153,2]
[381566249,1756285841569,-1124.67,0.00023153,2]
[381566251,1756285841579,-480.0,0.00023153,2]
[381566253,1756285841589,-939.76,0.00023153,2]
[381566255,1756285841599,-855.79,0.00023154,3]
[381566257,1756285841610,-797.69,0.00023154,3]
[381566259,1756285841622,-398.84,0.00023154,3]
[381566261,1756285841631,-199.42,0.00023154,3]
[381566262,1756285841641,-598.29,0.00023154,3]
[381566264,1756285841651,-1531.74,0.00023154,3]
[381566265,1756285841661,-500.0,0.0002316,2]
[381566266,1756285841671,-1046.68,0.0002316,2]
[381566267,1756285841681,-1046.68,0.0002316,2]
[381566268,1756285841691,-1046.68,0.0002316,2]
[381566269,1756285841700,-769.98,0.00023161,2]
[381566270,1756285841710,-973.37,0.00023161,2]
[381566271,1756285841719,-598.01,0.00023161,2]
[381566272,1756285841729,-480.0,0.00023161,2]
[381566273,1756285841739,-480.0,0.00023161,2]
[381566274,1756285841749,-480.0,0.00023161,2]
[381566275,1756285841758,-480.0,0.00023161,2]
[381566276,1756285841768,-480.0,0.00023161,2]
[381566277,1756285841777,-480.0,0.00023161,2]
[381566278,1756285841787,-480.0,0.00023161,2]
[381566279,1756285841796,-480.0,0.00023161,2]
[381566280,1756285841805,-480.0,0.00023161,2]
[381566281,1756285841815,-692.86,0.00023161,2]
[381566282,1756285841824,-480.0,0.00023161,2]
[381566283,1756285841834,-480.0,0.00023161,2]
[381566284,1756285841843,-823.54,0.00023161,2]
[381566285,1756285841853,-480.0,0.00023161,2]
[381566286,1756285841863,-480.0,0.00023161,2]
[381566287,1756285841873,-904.0,0.00023161,2]
[381566288,1756285841883,-539.95,0.00023161,2]
[381566289,1756285841893,-543.54,0.00023161,2]
[381566290,1756285841903,-480.0,0.00023161,2]
[381566291,1756285841912,-589.92,0.00023161,2]
[381566292,1756285841921,-368.00307532,0.00023161,2]
[381566293,1756285841931,-480.0,0.00023161,2]
[381566294,1756285841940,-573.33,0.00023161,2]
[381566295,1756285841950,-518.46,0.00023161,2]
[381566296,1756285841959,-1072.36,0.00023161,2]
[381566297,1756285841968,-661.31,0.00023161,2]
[381566298,1756285841978,-480.0,0.00023161,2]
[381566299,1756285841987,-480.0,0.00023161,2]
[381566300,1756285841996,-1579.27,0.00023161,2]
[381566301,1756285842006,-480.0,0.00023161,2]
[381566302,1756285842016,-480.0,0.00023161,2]
[381566303,1756285842026,-2289.21,0.00023161,2]
[381566304,1756285842035,-1276.73,0.00023161,2]
[381566305,1756285842046,-480.0,0.00023161,2]
[381566306,1756285842055,-480.0,0.00023161,2]
[381566307,1756285842066,-480.0,0.00023161,2]
[381566308,1756285842076,-588.66,0.00023161,2]
[381566309,1756285842089,-480.0,0.00023161,2]
[381566310,1756285842099,-480.0,0.00023161,2]
[381566311,1756285842109,-480.0,0.00023161,2]
[381566312,1756285842118,-480.0,0.00023161,2]
[381566313,1756285842128,-480.0,0.00023161,2]
[381566314,1756285842137,-480.0,0.00023161,2]
[381566315,1756285842146,-638.04,0.00023161,2]
[381566316,1756285842154,-483.41,0.00023161,2]
[381566317,1756285842163,-565.0,0.00023161,2]
[381566318,1756285842175,-480.000354,0.00023161,2]
[381566319,1756285842184,-481.97130393,0.00023161,2]
[381566320,1756285842194,-480.0,0.00023161,2]
[381566321,1756285842203,-500.0,0.00023161,2]
[381566322,1756285842212,-726.75,0.00023161,2]
[381566323,1756285842222,-480.0,0.00023161,2]
[381566324,1756285842231,-481.21499859,0.00023161,2]
[381566325,1756285842240,-737.76,0.00023161,2]
[381566326,1756285842250,-480.0,0.00023161,2]
[381566327,1756285842259,-480.0,0.00023161,2]
[381566328,1756285842272,-480.0,0.00023161,2]
[381566329,1756285842282,-755.95,0.00023161,2]
[381566330,1756285842291,-546.92,0.00023161,2]
[381566331,1756285842301,-480.0,0.00023161,2]
[381566332,1756285842310,-480.0,0.00023161,2]
[381566333,1756285842319,-1220.67,0.00023161,2]
[381566334,1756285842329,-480.0,0.00023161,2]
[381566335,1756285842338,-1004.72,0.00023161,2]
[381566336,1756285842347,-480.0,0.00023161,2]
[381566337,1756285842358,-480.0,0.00023161,2]
[381566338,1756285842369,-480.0,0.00023161,2]
[381566339,1756285842378,-624.24,0.00023161,2]
[381566340,1756285842388,-831.69,0.00023161,2]
[381566341,1756285842398,-500.0,0.00023161,2]
[381566342,1756285842408,-500.0,0.00023161,2]
[381566343,1756285842418,-1158.97,0.00023161,2]
[381566344,1756285842428,-480.0,0.00023161,2]
[381566345,1756285842437,-894.53,0.00023161,2]
[381566346,1756285842446,-480.0,0.00023161,2]
[381566347,1756285842455,-578.64,0.00023161,2]
[381566348,1756285842464,-553.43,0.00023161,2]
[381566349,1756285842474,-480.0,0.00023161,2]
[381566350,1756285842483,-480.0,0.00023161,2]
[381566351,1756285842492,-1766.57,0.00023161,2]
[381566352,1756285842501,-518.24,0.00023161,2]
[381566353,1756285842511,-1075.97,0.00023161,2]
[381566354,1756285842520,-480.0,0.00023161,2]
[381566355,1756285842529,-480.0,0.00023161,2]
[381566356,1756285842539,-500.0,0.00023161,2]
[381566357,1756285842555,-500.0,0.00023161,2]
[381566358,1756285842567,-500.0,0.00023161,2]
[381566359,1756285842577,-480.0,0.00023161,2]
[381566360,1756285842586,-449.08228157,0.00023161,2]
[381566361,1756285842596,-480.0,0.00023161,2]
[381566362,1756285842605,-480.0,0.00023161,2]
[381566363,1756285842615,-438.11780381,0.00023161,2]
[381566364,1756285842626,-480.0,0.00023161,2]
[381566365,1756285842635,-480.0,0.00023161,2]
[381566366,1756285842645,-580.93,0.00023161,2]
[381566367,1756285842654,-480.0,0.00023161,2]
[381566368,1756285842663,-480.0,0.00023161,2]
[381566369,1756285842674,-480.0,0.00023161,2]
[381566370,1756285842684,-604.48,0.00023161,2]
[381566371,1756285842694,-480.0,0.00023161,2]
[381566372,1756285842704,-912.71,0.00023161,2]
[381566373,1756285842713,-712.92,0.00023161,2]
[381566374,1756285842723,-500.0,0.00023161,2]
[381566375,1756285842732,-500.0,0.00023161,2]
[381566376,1756285842742,-500.0,0.00023161,2]
[381566377,1756285842751,-480.0,0.00023161,2]
[381566378,1756285842761,-693.87,0.00023161,2]
[381566379,1756285842770,-842.6,0.00023161,2]
[381566380,1756285842780,-480.0,0.00023161,2]
[381566381,1756285842789,-764.06,0.00023161,2]
[381566382,1756285842798,-500.0,0.00023162,2]
[381566383,1756285842807,-500.0,0.00023162,2]
[381566384,1756285842817,-1046.68,0.00023162,2]
[381566385,1756285842827,-480.0,0.00023163,2]
[381566386,1756285842838,-501.01023915,0.00023163,2]
[381566387,1756285842848,-480.09,0.00023163,2]
[381566388,1756285842857,-480.0,0.00023163,2]
[381566389,1756285842867,-928.11,0.00023163,2]
[381566390,1756285842877,-480.0,0.00023163,2]
[381566391,1756285842886,-1912.74,0.00023163,2]
[381566392,1756285842896,-500.0,0.00023163,2]
[381566393,1756285842905,-500.0,0.00023163,2]
[381566394,1756285842914,-500.0,0.00023163,2]
[381566395,1756285842924,-500.0,0.00023163,2]
[381566396,1756285842933,-7935.53,0.00023163,2]
[381566397,1756285842943,-3188.91,0.00023163,2]
[381566398,1756285842953,-500.0,0.00023163,2]
[381566399,1756285842962,-500.0,0.00023163,2]
[381566400,1756285842971,-500.0,0.00023163,2]
[381566401,1756285842981,-661.24,0.00023163,2]
[381566402,1756285842991,-1287.31,0.00023163,2]
[381566403,1756285843000,-500.0,0.00023163,2]
[381566404,1756285843009,-1046.68,0.00023163,2]
[381566405,1756285843019,-500.0,0.00023163,2]
[381566406,1756285843028,-1046.68,0.00023163,2]
[381566407,1756285843038,-500.0,0.00023163,2]
[381566408,1756285843048,-1046.68,0.00023163,2]
[381566409,1756285843058,-1046.68,0.00023163,2]
[381566410,1756285843067,-1046.68,0.00023163,2]
[381566411,1756285843077,-1046.68,0.00023163,2]
[381566412,1756285843088,-1046.71,0.00023163,2]
[381566413,1756285843099,-7833.3,0.00023163,2]
[381566414,1756285843108,-500.0,0.00023164,2]
[381566415,1756285843119,-1493.34,0.00023164,2]
[381566417,1756285843128,-824.96,0.00023164,2]
[381566418,1756285843138,-579.94,0.00023164,2]
[381566419,1756285843147,-830.02,0.00023164,2]
[381566420,1756285843157,-970.25,0.00023164,2]
[381566421,1756285843168,-480.0,0.00023164,2]
[381566422,1756285843179,-786.53,0.00023164,2]
[381566423,1756285843188,-848.93,0.00023164,2]
[381566424,1756285843200,-789.12,0.00023164,2]
[381566425,1756285843209,-1366.37,0.00023164,2]
[381566426,1756285843219,-480.0,0.00023164,2]
[381566427,1756285843229,-566.14,0.00023164,2]
[381566428,1756285843239,-480.0,0.00023164,2]
[381566429,1756285843249,-678.67,0.00023164,2]
[381566430,1756285843258,-480.0,0.00023164,2]
[381566431,1756285843266,-822.43,0.00023164,2]
[381566432,1756285843276,-1389.22,0.00023164,2]
[381566433,1756285843286,-704.2,0.00023164,2]
[381566434,1756285843295,-792.52,0.00023164,2]
[381566435,1756285843304,-1169.64,0.00023164,2]
[381566436,1756285843314,-480.0,0.00023164,2]
[381566437,1756285843323,-480.0,0.00023164,2]
[381566438,1756285843332,-480.0,0.00023164,2]
[381566439,1756285843342,-480.0,0.00023164,2]
[381566440,1756285843351,-441.98568215,0.00023164,2]
[381566441,1756285843360,-1043.59,0.00023164,2]
[381566442,1756285843370,-480.0,0.00023164,2]
[381566443,1756285843380,-480.0,0.00023164,2]
[381566444,1756285843390,-618.15,0.00023164,2]
[381566445,1756285843399,-480.0,0.00023164,2]
[381566446,1756285843408,-1320.45,0.00023164,2]
[381566447,1756285843418,-841.41,0.00023164,2]
[381566448,1756285843427,-619.37,0.00023164,2]
[381566449,1756285843436,-533.22,0.00023164,2]
[381566450,1756285843446,-872.01,0.00023164,2]
[381566451,1756285843455,-646.46,0.00023164,2]
[381566452,1756285843465,-480.0,0.00023164,2]
[381566453,1756285843475,-480.0,0.00023164,2]
[381566454,1756285843484,-938.57,0.00023164,2]
[381566455,1756285843493,-597.03,0.00023164,2]
[381566456,1756285843503,-942.59,0.00023164,2]
[381566457,1756285843512,-2221.35,0.00023164,2]
[381566458,1756285843522,-480.0,0.00023164,2]
[381566459,1756285843531,-730.56,0.00023164,2]
[381566460,1756285843540,-480.0,0.00023164,2]
[381566461,1756285843550,-480.0,0.00023164,2]
[381566462,1756285843559,-1151.88,0.00023164,2]
[381566463,1756285843569,-723.52,0.00023164,2]
[381566464,1756285843578,-622.95,0.00023164,2]
[381566465,1756285843588,-722.75,0.00023164,2]
[381566466,1756285843597,-2892.81,0.00023164,2]
[381566467,1756285843607,-1014.18,0.00023164,2]
[381566468,1756285843616,-283.54105427,0.00023164,2]
[381566469,1756285843626,-480.0,0.00023164,2]
[381566470,1756285843635,-1664.28,0.00023164,2]
[381566471,1756285843645,-480.0,0.00023164,2]
[381566472,1756285843654,-989.88,0.00023164,2]
[381566473,1756285843664,-480.53993548,0.00023164,2]
[381566474,1756285843673,-954.3,0.00023164,2]
[381566475,1756285843683,-1583.05,0.00023164,2]
[381566476,1756285843692,-696.96,0.00023164,2]
[381566477,1756285843702,-480.47239458,0.00023164,2]
[381566478,1756285843711,-480.0,0.00023164,2]
[381566479,1756285843721,-1095.71,0.00023164,2]
[381566481,1756285843731,-1292.01,0.00023164,2]
[381566482,1756285843797,-480.0,0.00023164,2]
[381566483,1756285843806,-7005.01,0.00023164,2]
[381566484,1756285843816,-480.0,0.00023164,2]
[381566485,1756285843825,-1021.23,0.00023164,2]
[381566486,1756285843835,-339.46258677,0.00023164,2]
[381566487,1756285843844,-480.0,0.00023164,2]
[381566488,1756285843853,-1613.16,0.00023164,2]
[381566489,1756285843862,-767.01,0.00023164,2]
[381566490,1756285843873,-483.3306304,0.00023164,2]
[381566491,1756285843882,-480.0,0.00023164,2]
[381566492,1756285843891,-1041.73,0.00023164,2]
[381566493,1756285843901,-500.0,0.00023164,2]
[381566494,1756285843910,-1932.71,0.00023164,2]
[381566495,1756285843919,-480.0,0.00023164,2]
[381566496,1756285843929,-480.0,0.00023164,2]
[381566497,1756285843938,-480.0,0.00023164,2]
[381566498,1756285843947,-1275.38,0.00023164,2]
[381566499,1756285843957,-828.36,0.00023164,2]
[381566501,1756285843966,-480.0,0.00023164,2]
[381566503,1756285843975,-596.07,0.00023164,2]
[381566505,1756285843985,-500.0,0.00023164,2]
[381566507,1756285843994,-480.0,0.00023164,2]
[381566509,1756285844004,-971.07,0.00023164,2]
[381566511,1756285844014,-480.0,0.00023164,2]
[381566512,1756285844024,-777.08,0.00023164,2]
[381566513,1756285844033,-626.87,0.00023164,2]
[381566515,1756285844043,-480.0,0.00023164,2]
[381566516,1756285844053,-591.62,0.00023164,2]
[381566517,1756285844062,-480.0,0.00023164,2]
[381566518,1756285844072,-480.0,0.00023164,2]
[381566519,1756285844082,-866.92,0.00023164,2]
[381566520,1756285844093,-500.0,0.00023164,2]
[381566521,1756285844103,-500.0,0.00023165,2]
[381566522,1756285844112,-500.0,0.00023165,2]
[381566523,1756285844121,-500.0,0.00023165,2]
[381566524,1756285844131,-526.80720174,0.00023165,2]
[381566525,1756285844139,-153.68950293,0.00023165,2]
[381566526,1756285844149,-1134.59,0.00023165,2]
[381566527,1756285844158,-500.0,0.00023165,2]
[381566528,1756285844169,-500.0,0.00023165,2]
[381566529,1756285844179,-300.81865132,0.00023165,2]
[381566530,1756285844187,-160.0,0.00023165,2]
[381566531,1756285844197,-480.0,0.00023166,2]
[381566532,1756285844206,-480.0,0.00023166,2]
[381566533,1756285844215,-480.0,0.00023166,2]
[381566534,1756285844223,-582.13,0.00023166,2]
[381566535,1756285844233,-480.0,0.00023166,2]
[381566536,1756285844242,-480.0,0.00023166,2]
[381566537,1756285844252,-880.24,0.00023166,2]
[381566538,1756285844260,-480.0,0.00023166,2]
[381566539,1756285844270,-480.0,0.00023166,2]
[381566540,1756285844279,-480.0,0.00023166,2]
[381566541,1756285844288,-461.60558549,0.00023166,2]
[381566542,1756285844297,-482.22089913,0.00023166,2]
[381566543,1756285844306,-480.0,0.00023166,2]
[381566544,1756285844316,-480.0,0.00023166,2]
[381566545,1756285844326,-480.0,0.00023166,2]
[381566546,1756285844335,-480.0,0.00023166,2]
[381566547,1756285844344,-480.0,0.00023166,2]
[381566548,1756285844353,-480.0,0.00023166,2]
[381566549,1756285844362,-461.31848039,0.00023166,2]
[381566550,1756285844372,-480.0,0.00023166,2]
[381566551,1756285844381,-480.0,0.00023166,2]
[381566552,1756285844391,-692.95,0.00023166,2]
[381566553,1756285844400,-480.0,0.00023166,2]
[381566554,1756285844410,-480.0,0.00023166,2]
[381566555,1756285844419,-480.0,0.00023166,2]
[381566556,1756285844429,-480.0,0.00023166,2]
[381566557,1756285844438,-480.0,0.00023166,2]
[381566559,1756285844447,-480.0,0.00023166,2]
[381566560,1756285844457,-480.0,0.00023166,2]
[381566561,1756285844466,-511.69,0.00023166,2]
[381566562,1756285844475,-480.0,0.00023166,2]
[381566563,1756285844484,-480.0,0.00023166,2]
[381566564,1756285844493,-480.0,0.00023166,2]
[381566566,1756285844503,-480.0,0.00023166,2]
[381566568,1756285844512,-461.20686856,0.00023166,2]
[381566569,1756285844521,-480.0,0.00023166,2]
[381566570,1756285844530,-480.0,0.00023166,2]
[381566572,1756285844539,-525.01,0.00023166,2]
[381566574,1756285844549,-480.0,0.00023166,2]
[381566576,1756285844558,-480.0,0.00023166,2]
[381566578,1756285844567,-1917.35,0.00023166,2]
[381566580,1756285844577,-629.17,0.00023166,2]
[381566582,1756285844586,-480.0,0.00023166,2]
[381566584,1756285844595,-304.59876927,0.00023166,2]
[381566586,1756285844604,-783.15,0.00023166,2]
[381566588,1756285844614,-480.0,0.00023166,2]
[381566590,1756285844623,-480.0,0.00023166,2]
[381566591,1756285844633,-737.21,0.00023166,2]
[381566592,1756285844642,-480.0,0.00023166,2]
[381566593,1756285844651,-480.0,0.00023166,2]
[381566594,1756285844661,-773.62,0.00023166,2]
[381566596,1756285844670,-516.6,0.00023166,2]
[381566597,1756285844679,-212.35016576,0.00023166,2]
[381566598,1756285844688,-480.0,0.00023166,2]
[381566599,1756285844698,-480.0,0.00023166,2]
[381566600,1756285844707,-888.62,0.00023166,2]
[381566601,1756285844716,-627.03,0.00023166,2]
[381566602,1756285844725,-1140.75,0.00023166,2]
[381566603,1756285844735,-613.83,0.00023166,2]
[381566604,1756285844744,-480.0,0.00023166,2]
[381566605,1756285844753,-973.97,0.00023166,2]
[381566606,1756285844762,-462.35650105,0.00023166,2]
[381566607,1756285844772,-480.0,0.00023166,2]
[381566608,1756285844781,-480.0,0.00023166,2]
[381566609,1756285844791,-1191.58,0.00023166,2]
[381566610,1756285844800,-480.0,0.00023166,2]
[381566611,1756285844810,-480.0,0.00023166,2]
[381566612,1756285844819,-234.93878317,0.00023166,2]
[381566613,1756285844829,-480.0,0.00023166,2]
[381566614,1756285844840,-666.29,0.00023166,2]
[381566615,1756285844849,-700.94,0.00023166,2]
[381566616,1756285844859,-770.58,0.00023166,2]
[381566617,1756285844869,-319.65725652,0.00023166,2]
[381566618,1756285844878,-745.81,0.00023166,2]
[381566619,1756285844887,-480.0,0.00023166,2]
[381566620,1756285844896,-3208.7,0.00023166,2]
[381566621,1756285844906,-480.0,0.00023166,2]
[381566622,1756285844915,-779.72,0.00023166,2]
[381566623,1756285844925,-1513.85,0.00023166,2]
[381566624,1756285844934,-1234.21,0.00023166,2]
[381566625,1756285844943,-515.48,0.00023166,2]
[381566626,1756285844952,-480.0,0.00023166,2]
[381566627,1756285844962,-480.0,0.00023166,2]
[381566628,1756285844971,-480.0,0.00023166,2]
[381566629,1756285844982,-820.08,0.00023166,2]
[381566630,1756285844992,-480.0,0.00023166,2]
[381566631,1756285845001,-651.98,0.00023166,2]
[381566632,1756285845010,-480.0,0.00023166,2]
[381566633,1756285845020,-1074.18,0.00023166,2]
[381566634,1756285845029,-480.0,0.00023166,2]
[381566635,1756285845039,-880.36,0.00023166,2]
[381566636,1756285845048,-506.76,0.00023166,2]
[381566637,1756285845057,-480.0,0.00023166,2]
[381566638,1756285845066,-480.0,0.00023166,2]
[381566639,1756285845077,-480.0,0.00023166,2]
[381566640,1756285845087,-2039.07,0.00023166,2]
[381566641,1756285845098,-480.0,0.00023166,2]
[381566642,1756285845107,-480.87472253,0.00023166,2]
[381566643,1756285845116,-480.0,0.00023166,2]
[381566644,1756285845127,-480.0,0.00023166,2]
[381566645,1756285845136,-480.0,0.00023166,2]
[381566646,1756285845147,-480.0,0.00023166,2]
[381566647,1756285845156,-1038.1,0.00023166,2]
[381566648,1756285845168,-480.0,0.00023166,2]
[381566649,1756285845178,-480.0,0.00023166,2]
[381566650,1756285845187,-480.0,0.00023166,2]
[381566651,1756285845197,-480.0,0.00023166,2]
[381566652,1756285845207,-480.0,0.00023166,2]
[381566653,1756285845216,-673.98,0.00023166,2]
[381566654,1756285845225,-480.0,0.00023166,2]
[381566655,1756285845235,-930.51,0.00023166,2]
[381566656,1756285845244,-1610.0,0.00023166,2]
[381566657,1756285845253,-482.89680585,0.00023166,2]
[381566658,1756285845262,-319.43910421,0.00023166,2]
[381566659,1756285845272,-480.0,0.00023166,2]
[381566660,1756285845281,-480.0,0.00023166,2]